bitfinex/quotes_ETHUSD_20251111
["timestamp","ask_amount","ask_price","bid_price","bid_amount"]
[1762866100863,0.4892,3547.2,3546.7,0.715]
[1762866101892,0.0012,3547.3,3546.7,1.61794916]
[1762866102210,0.4892,3547.2,3546.7,1.61794916]
[1762866102703,0.0012,3547.3,3546.7,1.61794916]
[1762866102704,0.0012,3547.3,3547.0,0.75586287]
[1762866103007,0.4892,3547.2,3546.8,0.714]
[1762866103162,0.6799,3546.9,3546.8,0.714]
[1762866103580,3.98853726,3546.9,3546.3,0.75586287]
[1762866103903,0.1411,3546.5,3546.4,0.714]
[1762866104071,0.9886,3546.5,3546.4,0.714]
[1762866107505,0.9886,3546.5,3546.1,0.713]
[1762866107706,0.4892,3546.4,3546.1,0.713]
[1762866107916,0.4994,3546.2,3546.1,0.713]
[1762866108415,0.9886,3546.2,3546.1,0.713]
[1762866108710,0.9886,3546.2,3545.6,0.001]
[1762866108882,0.1411,3546.0,3545.6,0.001]
[1762866109288,0.6697,3545.9,3545.6,0.001]
[1762866109482,0.4958,3545.7,3545.6,0.001]
[1762866109879,0.985,3545.7,3545.6,0.001]
[1762866110115,0.4958,3545.7,3545.6,0.001]
[1762866110416,0.985,3545.7,3545.6,0.001]
[1762866111683,4.20388582,3545.7,3545.6,0.001]
[1762866115078,8.02388582,3545.7,3545.6,0.001]
[1762866115726,4.3158,3545.7,3545.6,0.001]
[1762866116690,3.82,3545.7,3545.6,0.001]
[1762866119095,3.82,3545.7,3545.6,0.4936]
[1762866120229,3.8192,3545.7,3545.6,0.4936]
[1762866120635,0.707,3546.6,3545.6,0.4936]
[1762866120636,3.8192,3546.8,3545.9,2.82012824]
[1762866120795,4.2732,3546.8,3546.0,1.48161282]
[1762866121002,4.2732,3546.8,3546.0,1.1996]
[1762866121205,4.2732,3546.8,3546.0,4.01965613]
[1762866121433,0.1805,3546.9,3546.1,0.1777]
[1762866121602,0.1996,3546.9,3546.1,0.93529753]
[1762866121949,0.1996,3546.9,3546.1,2.19500953]
[1762866122275,3.8212,3547.6,3546.8,0.4926]
[1762866122442,0.002,3547.6,3546.9,1.1986]
[1762866122824,0.002,3547.6,3546.9,1.6663]
[1762866123041,0.002,3547.6,3547.2,0.4926]
[1762866123603,0.002,3547.6,3547.2,4.57143694]
[1762866123907,0.002,3547.6,3547.2,11.88017786]
[1762866124131,0.002,3547.6,3547.2,11.61148367]
[1762866124434,0.002,3547.6,3547.2,10.84457158]
[1762866124933,0.002,3547.6,3547.2,11.1831848]
[1762866125140,0.002,3547.6,3547.2,11.61148367]
[1762866125706,0.002,3547.6,3547.2,10.84457158]
[1762866126371,0.01,3547.9,3547.6,0.898104]
[1762866126632,0.002,3548.1,3547.5,4.07859853]
[1762866126633,0.002,3548.1,3548.0,8.94799749]
[1762866126852,0.002,3548.1,3548.0,9.77921071]
[1762866127050,0.002,3548.1,3548.0,10.33659636]
[1762866127261,0.002,3548.1,3548.0,11.41484466]
[1762866127525,0.002,3548.1,3548.0,10.55659636]
[1762866127732,0.002,3548.1,3548.0,11.95813835]
[1762866128128,0.002,3548.1,3548.0,13.46329202]
[1762866128544,0.002,3548.1,3548.0,11.95813835]
[1762866128766,0.002,3548.1,3548.0,12.96162334]
[1762866128966,0.002,3548.1,3548.0,12.74163131]
[1762866129271,0.01,3548.9,3548.8,6.12950821]
[1762866129476,0.01,3548.9,3548.8,3.3540576]
[1762866129793,0.01,3548.9,3548.8,6.17191152]
[1762866130275,0.01,3548.9,3548.8,7.40514541]
[1762866130430,0.01,3548.9,3548.8,7.04511552]
[1762866130788,0.01,3548.9,3548.8,3.8217576]
[1762866131084,0.01,3548.9,3548.8,2.459312]
[1762866131234,0.01,3548.9,3548.8,1.1996]
[1762866132582,0.01,3548.9,3548.8,0.707]
[1762866133076,0.01,3548.9,3548.8,2.459312]
[1762866133274,0.01,3548.9,3548.8,1.1996]
[1762866134486,0.4771,3548.9,3548.8,0.707]
[1762866134789,0.6094,3548.9,3548.8,0.707]
[1762866135074,0.01,3548.9,3548.8,0.707]
[1762866136345,0.4771,3548.9,3548.8,0.707]
[1762866136767,0.01,3548.9,3548.8,0.707]
[1762866136973,0.01,3548.9,3548.8,1.05950106]
[1762866137140,0.01,3548.9,3548.8,2.459312]
[1762866137340,0.01,3548.9,3548.8,1.1996]
[1762866137640,0.01,3548.9,3548.8,2.072804]
[1762866137873,0.01,3548.9,3548.8,6.15036992]
[1762866138194,0.01,3548.9,3548.8,2.459312]
[1762866138541,0.01,3548.9,3548.8,5.27716592]
[1762866138788,0.01,3548.9,3548.8,3.26882985]
[1762866138986,0.01,3548.9,3548.8,6.08668377]
[1762866139189,0.01,3548.9,3548.8,6.55438377]
[1762866139354,0.01,3548.9,3548.8,3.26882985]
[1762866139688,0.01,3548.9,3548.8,5.27716592]
[1762866140693,0.01,3548.9,3548.8,6.15036992]
[1762866140845,0.01,3548.9,3548.8,6.51039981]
[1762866141079,0.01,3548.9,3548.8,5.68266992]
[1762866141559,0.01,3548.9,3548.8,6.15036992]
[1762866141890,0.01,3548.9,3548.8,7.02593657]
[1762866142397,0.01,3548.9,3548.8,7.49363657]
[1762866142601,0.01,3548.9,3548.8,7.85366646]
[1762866143046,0.012,3548.9,3548.8,7.49363657]
[1762866143248,0.012,3548.9,3548.8,7.85366646]
[1762866143592,0.2096,3549.9,3549.8,0.405504]
[1762866143593,0.01,3549.9,3549.8,0.405504]
[1762866143742,0.01,3549.9,3549.8,6.14557611]
[1762866143944,0.01,3549.9,3549.8,7.86491472]
[1762866144198,0.0092,3549.9,3549.8,7.86491472]
[1762866144891,0.0092,3549.9,3549.8,7.03718483]
[1762866145072,0.0092,3549.9,3549.8,4.22012472]
[1762866145246,0.0092,3549.9,3549.8,5.67787611]
[1762866145584,1.1679,3549.9,3549.8,1.962712]
[1762866146166,1.1679,3549.9,3549.8,0.703]
[1762866146374,1.1679,3549.9,3548.8,1.34326665]
[1762866146569,0.0946,3549.1,3548.9,0.923]
[1762866146844,0.4992,3549.8,3549.0,0.703]
[1762866147048,0.4992,3549.7,3549.0,0.703]
[1762866147273,0.4651,3549.1,3549.0,0.703]
[1762866147946,0.9643,3549.1,3549.0,0.703]
[1762866149383,0.4992,3549.5,3549.0,0.703]
[1762866150086,0.4992,3549.5,3549.0,1.18104923]
[1762866151150,0.4992,3549.5,3549.0,1.93231978]
[1762866151988,0.4651,3549.1,3549.0,1.18104923]
[1762866152357,0.4651,3549.1,3549.0,0.703]
[1762866153186,0.2036,3549.9,3549.1,0.405504]
[1762866153394,0.4992,3549.8,3549.4,0.75842044]
[1762866153865,0.4992,3549.8,3549.4,1.45942044]
[1762866154309,0.4992,3549.8,3549.5,0.75842044]
[1762866154806,0.4651,3549.6,3549.4,1.45942044]
[1762866154969,0.0946,3549.5,3549.4,0.701]
[1762866155155,0.0946,3549.5,3549.4,1.45942044]
[1762866155358,0.5938,3549.5,3549.4,0.701]
[1762866155578,0.5938,3549.5,3549.3,0.75842044]
[1762866155902,0.4614,3549.4,3549.3,0.75842044]
[1762866156055,0.4614,3549.4,3549.3,0.75880436]
[1762866156271,0.9606,3549.4,3549.1,1.71222726]
[1762866156615,0.0983,3549.2,3549.1,1.71222726]
[1762866157209,0.4992,3549.4,3549.1,1.71222726]
[1762866157371,0.7028,3549.9,3549.1,2.15980529]
[1762866157576,0.7028,3549.9,3549.5,0.75896145]
[1762866157789,0.7028,3549.9,3549.6,1.45996145]
[1762866158106,0.4651,3549.7,3549.6,1.45996145]
[1762866158968,0.9643,3549.7,3549.6,1.45996145]
[1762866159606,0.9643,3549.7,3549.5,0.75896145]
[1762866159775,0.4992,3549.6,3549.4,0.75896145]
[1762866160184,0.4651,3549.5,3549.4,0.75896145]
[1762866160581,0.9643,3549.5,3549.4,0.75896145]
[1762866160781,0.9643,3549.5,3549.2,0.75896145]
[1762866161027,3.28255696,3549.3,3549.2,0.75896145]
[1762866161173,3.28255696,3549.3,3549.1,0.75996145]
[1762866161373,7.23053634,3549.2,3549.1,0.001]
[1762866162106,8.2353349,3549.2,3549.1,0.001]
[1762866163505,9.4950469,3549.2,3549.1,0.001]
[1762866164095,9.75422891,3549.2,3549.1,0.001]
[1762866164291,2.81817157,3548.4,3548.3,0.001]
[1762866164519,4.18618206,3548.4,3548.3,0.001]
[1762866164718,4.68538206,3548.4,3548.3,0.001]
[1762866164937,8.54539497,3548.4,3548.3,0.001]
[1762866165107,4.24338687,3548.4,3548.3,0.001]
[1762866165424,4.68538206,3548.4,3548.3,0.001]
[1762866166386,3.98438206,3548.4,3548.3,0.001]
[1762866166828,0.1034,3548.4,3548.3,0.001]
[1762866166991,0.6936,3548.8,3548.3,0.001]
[1762866166992,3.51148147,3548.8,3548.3,0.001]
[1762866167320,0.4651,3548.4,3548.3,0.001]
[1762866167722,0.9643,3548.4,3548.3,0.001]
[1762866167911,3.78247157,3548.4,3548.3,0.001]
[1762866168227,0.9635,3548.4,3548.3,0.001]
[1762866170002,4.7827,3548.4,3548.3,0.001]
[1762866170307,3.8192,3548.4,3548.3,0.001]
[1762866172654,0.1944,3548.8,3548.3,0.001]
[1762866172655,3.8192,3548.8,3548.3,0.4661]
[1762866172851,3.8192,3548.8,3548.4,0.582811]
[1762866174461,3.8192,3548.8,3548.4,1.82557245]
[1762866174750,4.3184,3548.8,3548.4,0.582811]
[1762866174978,3.8192,3548.8,3548.4,0.582811]
[1762866175160,0.4992,3548.7,3548.4,1.34177245]
[1762866175363,0.4992,3548.7,3548.5,0.17482764]
[1762866175539,3.8192,3548.8,3548.5,0.17482764]
[1762866176262,3.8192,3548.8,3548.5,0.93378909]
[1762866176462,3.8192,3548.8,3548.7,0.4735]
[1762866177060,3.8192,3548.8,3548.5,1.43238909]
[1762866177061,3.8192,3548.8,3548.6,0.701]
[1762866177261,3.8192,3548.8,3548.6,1.43177101]
[1762866177436,3.8192,3548.7,3548.6,1.43177101]
[1762866177627,3.8192,3548.7,3548.6,0.701]
[1762866178239,4.285,3548.7,3548.6,0.701]
[1762866178626,4.7371,3548.7,3548.6,0.701]
[1762866179035,4.285,3548.7,3548.6,0.701]
[1762866179442,3.8192,3548.7,3548.6,0.701]
[1762866179771,3.8212,3548.7,3548.6,0.701]
[1762866180210,3.8212,3548.7,3548.6,1.72838547]
[1762866180490,0.002,3548.7,3548.6,7.07024409]
[1762866181534,0.002,3548.7,3548.6,3.89220147]
[1762866181740,0.002,3548.7,3548.6,6.7102142]
[1762866183842,0.002,3548.7,3548.6,11.68855931]
[1762866184042,0.002,3548.7,3548.6,11.27122711]
[1762866184544,0.002,3548.7,3548.6,6.7102142]
[1762866186873,0.002,3548.7,3548.6,6.2116142]
[1762866187555,0.002,3548.7,3548.6,6.7102142]
[1762866189090,0.002,3548.7,3548.6,6.2116142]
[1762866189289,0.002,3548.7,3548.6,3.39360147]
[1762866189500,0.4678,3548.7,3548.6,3.88096785]
[1762866189646,0.4678,3548.7,3548.6,0.701]
[1762866189848,0.002,3548.7,3548.6,1.71095779]
[1762866190151,0.002,3548.7,3548.6,3.84967379]
[1762866190489,0.4678,3548.7,3548.6,2.11646179]
[1762866191104,0.002,3548.7,3548.6,6.19418652]
[1762866191394,0.002,3548.7,3548.6,3.37617379]
[1762866192162,0.4678,3548.7,3548.6,2.366216]
[1762866192372,0.467,3548.7,3548.6,1.960712]
[1762866193061,0.467,3548.7,3548.6,2.366216]
[1762866193677,0.0012,3548.7,3548.6,2.366216]
[1762866195466,0.0012,3548.7,3548.6,3.37617379]
[1762866195662,0.0012,3548.7,3548.6,6.66768652]
[1762866195863,0.0012,3548.7,3548.6,6.15632873]
[1762866196903,0.0012,3548.7,3548.6,6.57366093]
[1762866197201,0.0012,3548.7,3548.6,6.51635862]
[1762866197368,0.0012,3548.7,3548.6,8.0964479]
[1762866197564,0.0012,3548.7,3548.6,8.5950479]
[1762866197799,0.0012,3548.7,3548.6,5.65772873]
[1762866198101,0.0012,3548.7,3548.6,5.18422873]
[1762866198714,0.467,3548.7,3548.6,5.18422873]
[1762866198917,0.0012,3548.7,3548.6,5.18422873]
[1762866199323,0.9191,3548.7,3548.6,1.106504]
[1762866200418,0.9191,3548.7,3548.6,0.701]
[1762866201476,0.467,3548.7,3548.6,1.106504]
[1762866201699,0.0012,3548.7,3548.6,5.65772873]
[1762866202024,0.0012,3548.7,3548.6,6.70129859]
[1762866202990,0.0012,3548.7,3548.6,5.18422873]
[1762866203312,0.0012,3548.7,3548.6,6.70286084]
[1762866204013,0.9191,3548.7,3548.6,2.77835039]
[1762866204215,0.9191,3548.7,3548.6,1.259712]
[1762866204517,0.9191,3548.7,3548.6,2.77835039]
[1762866204874,0.9191,3548.7,3548.6,1.259712]
[1762866206413,0.9191,3548.7,3548.6,4.07772473]
[1762866206625,0.0012,3548.7,3548.6,4.48322873]
[1762866206785,0.4845,3548.7,3548.6,3.18385439]
[1762866206985,0.4845,3548.7,3548.6,6.00186712]
[1762866207213,0.0012,3548.7,3548.6,6.00186712]
[1762866207384,0.0012,3548.7,3548.6,3.18385439]
[1762866207585,0.0012,3548.7,3548.6,6.00186712]
[1762866208698,0.0012,3548.7,3548.6,3.18385439]
[1762866208903,0.4845,3548.7,3548.6,1.665216]
[1762866209311,0.4845,3548.7,3548.6,3.18385439]
[1762866209498,0.0012,3548.7,3548.6,3.18385439]
[1762866209839,0.9746,3548.7,3548.6,1.259712]
[1762866210008,0.4845,3548.7,3548.6,1.259712]
[1762866211701,0.0012,3548.7,3548.6,6.49996712]
[1762866211926,0.0012,3548.7,3548.6,3.68195439]
[1762866212239,0.0012,3548.7,3548.6,6.00186712]
[1762866212601,3.8204,3548.7,3548.6,6.00186712]
[1762866212800,3.8204,3548.7,3548.6,6.49996712]
[1762866213001,3.8204,3548.7,3548.6,4.98132873]
[1762866213439,3.8204,3548.7,3548.6,2.163316]
[1762866213737,3.8204,3548.7,3548.6,1.665216]
[1762866214038,4.7938,3548.7,3548.6,2.77926815]
[1762866214334,4.3037,3548.7,3548.6,2.77926815]
[1762866214738,3.8204,3548.7,3548.6,2.77926815]
[1762866214901,3.8204,3548.7,3548.6,4.07772473]
[1762866215305,3.8204,3548.7,3548.6,4.48322873]
[1762866215547,3.8204,3548.7,3548.6,2.163316]
[1762866215724,4.3037,3548.7,3548.6,3.18493558]
[1762866216203,4.3029,3548.7,3548.6,3.18493558]
[1762866217423,4.3029,3548.7,3548.6,3.18593558]
[1762866217631,4.3029,3548.7,3548.6,0.001]
[1762866218140,3.8196,3548.7,3548.6,2.81901273]
[1762866218298,3.8196,3548.7,3548.6,0.001]
[1762866218504,4.3029,3548.7,3548.6,0.001]
[1762866218711,4.793,3548.7,3548.6,0.001]
[1762866219339,7.61093332,3548.7,3548.6,0.001]
[1762866219641,8.30993332,3548.7,3548.6,0.001]
[1762866220431,7.61093332,3548.7,3548.6,0.001]
[1762866220742,7.61093332,3548.7,3548.4,0.001]
[1762866220743,4.793,3548.7,3548.4,0.001]
[1762866220942,0.1882,3548.5,3548.4,0.76112257]
[1762866221146,0.1882,3548.5,3548.4,0.76052697]
[1762866221454,0.4833,3548.5,3548.4,0.001]
[1762866221641,0.9734,3548.5,3548.4,1.45942204]
[1762866222024,0.4833,3548.5,3548.4,0.7]
[1762866223145,0.0004,3548.7,3548.4,0.7]
[1762866223350,0.0004,3548.7,3548.5,0.75933049]
[1762866223961,0.9734,3548.6,3548.5,0.75933049]
[1762866224258,0.4833,3548.6,3548.5,0.75933049]
[1762866224956,0.9734,3548.6,3548.5,0.75933049]
[1762866225260,0.4833,3548.6,3548.5,0.75933049]
[1762866225659,0.0004,3548.7,3548.6,1.259712]
[1762866225858,0.0004,3548.7,3548.6,6.96844831]
[1762866226176,0.9738,3548.7,3548.6,2.27192811]
[1762866226476,0.4837,3548.7,3548.6,2.27192811]
[1762866227456,0.9738,3548.7,3548.6,1.01272779]
[1762866227928,0.9738,3548.7,3548.6,0.75957525]
[1762866229160,0.4837,3548.7,3548.6,0.75957525]
[1762866229346,0.0004,3548.7,3548.6,0.75957525]
[1762866229669,0.0004,3548.7,3548.6,1.01272779]
[1762866229972,0.0004,3548.7,3548.5,1.51971958]
[1762866230266,3.82,3548.6,3548.5,4.48327367]
[1762866230447,3.82,3548.6,3548.5,6.00299325]
[1762866230771,3.82,3548.6,3548.5,6.50109325]
[1762866231228,3.82,3548.6,3548.5,6.96849325]
[1762866231595,3.82,3548.6,3548.5,6.50109325]
[1762866231729,3.82,3548.6,3548.5,4.48330815]
[1762866231933,4.3033,3548.6,3548.5,1.665216]
[1762866232259,3.82,3548.6,3548.5,4.98140815]
[1762866232429,4.3033,3548.6,3548.5,1.665216]
[1762866232763,3.82,3548.6,3548.5,1.665216]
[1762866232962,3.82,3548.6,3548.5,4.48330815]
[1762866233258,3.82,3548.6,3548.5,4.98140815]
[1762866233564,3.82,3548.6,3548.5,2.163316]
[1762866233764,3.82,3548.6,3548.5,4.98140815]
[1762866233960,3.82,3548.6,3548.5,3.68303558]
[1762866234164,3.82,3548.6,3548.5,6.50112773]
[1762866234529,3.8204,3548.7,3548.6,4.07772473]
[1762866234735,3.8204,3548.7,3548.6,5.44872873]
[1762866235036,3.8204,3548.7,3548.6,5.79792529]
[1762866236485,3.8204,3548.7,3548.6,5.44872873]
[1762866238381,0.0004,3548.7,3548.6,5.44872873]
[1762866239572,0.0004,3548.7,3548.6,4.98132873]
[1762866239971,0.0004,3548.7,3548.6,5.43392873]
[1762866240270,3.8196,3548.9,3548.8,3.31155392]
[1762866240470,3.8196,3548.9,3548.8,4.46215392]
[1762866240894,3.8196,3548.9,3548.8,4.00955392]
[1762866241192,4.2936,3548.9,3548.8,2.21607784]
[1762866241399,3.8196,3548.9,3548.8,2.451412]
[1762866241692,3.8196,3548.9,3548.8,5.67476992]
[1762866241879,3.8196,3548.9,3548.8,7.19272182]
[1762866242392,3.8196,3548.9,3548.8,5.67476992]
[1762866242594,3.8196,3548.9,3548.8,7.19262348]
[1762866242913,3.8196,3548.9,3548.8,7.19263213]
[1762866243283,3.8196,3548.9,3548.8,5.67476992]
[1762866243480,3.8196,3548.9,3548.8,6.12736992]
[1762866244435,3.8196,3548.9,3548.8,6.69878991]
[1762866244599,3.8196,3548.9,3548.8,7.19248991]
[1762866245326,3.8196,3548.9,3548.8,5.67476992]
[1762866245541,3.8196,3548.9,3548.8,6.12736992]
[1762866247721,0.002,3549.0,3548.9,4.48299052]
[1762866247884,0.476,3549.0,3548.9,4.48299052]
[1762866248084,0.476,3549.0,3548.9,4.97669052]
[1762866248085,0.002,3549.0,3548.9,4.97669052]
[1762866248282,0.476,3549.0,3548.8,3.51578805]
[1762866248495,0.7768,3548.9,3548.8,1.957712]
[1762866248916,0.7768,3548.9,3548.8,0.698]
[1762866249116,0.5941,3548.9,3548.8,1.45662116]
[1762866249316,0.7768,3548.9,3548.8,1.45662116]
[1762866249618,4.5964,3548.9,3548.8,1.45662116]
[1762866250227,4.5964,3548.9,3548.8,0.698]
[1762866251340,7.41417452,3548.9,3548.7,0.75862116]
[1762866251636,0.9394,3548.8,3548.7,0.75862116]
[1762866252508,0.9394,3548.8,3548.6,0.697]
[1762866252723,0.6006,3548.7,3548.6,0.697]
[1762866253717,4.4202,3548.7,3548.6,0.697]
[1762866253917,4.4202,3548.7,3548.6,1.70849488]
[1762866254118,3.9548,3548.7,3548.6,1.70849488]
[1762866254314,3.8196,3548.7,3548.6,5.87831161]
[1762866254517,3.8196,3548.7,3548.6,6.12652873]
[1762866257327,3.8196,3548.7,3548.6,6.97268962]
[1762866259557,3.8196,3548.7,3548.6,8.99407659]
[1762866259860,0.002,3548.9,3548.6,8.99407659]
[1762866259861,0.002,3548.9,3548.8,3.22335792]
[1762866260160,1e-08,3549.3,3549.2,3.71674034]
[1762866260457,0.0112,3549.9,3549.4,8.93962403]
[1762866260661,0.0112,3549.9,3549.4,9.85415623]
[1762866260858,0.0112,3549.9,3549.4,10.65595279]
[1762866261060,0.0112,3549.9,3549.4,13.18608218]
[1762866261222,0.0112,3549.9,3549.4,13.05688562]
[1762866261430,0.0112,3549.9,3549.4,10.52675623]
[1762866262525,0.0112,3549.9,3549.4,10.10592403]
[1762866262766,0.0112,3549.9,3549.4,10.52675623]
[1762866263427,0.0112,3549.9,3549.4,10.10592403]
[1762866264232,0.0012,3549.5,3549.4,10.52675623]
[1762866264688,0.0012,3549.5,3549.4,10.10592403]
[1762866264966,0.0112,3549.9,3549.4,10.10592403]
[1762866264967,0.0112,3549.9,3549.6,4.48243484]
[1762866265171,0.0112,3549.9,3549.6,6.2413314]
[1762866265329,0.0112,3549.9,3549.6,7.1147636]
[1762866265524,0.002,3550.7,3549.9,3.22248476]
[1762866265839,0.002,3550.7,3550.2,5.10435871]
[1762866266044,0.002,3550.7,3550.2,5.52519091]
[1762866266243,0.002,3550.7,3550.2,5.79325871]
[1762866266832,0.002,3550.7,3550.2,6.21409091]
[1762866267162,0.002,3550.7,3550.2,5.32435871]
[1762866267668,0.002,3550.7,3550.2,5.74519091]
[1762866267971,0.002,3550.7,3550.2,6.3616717]
[1762866268374,0.002,3550.7,3550.2,7.13170046]
[1762866269577,0.002,3550.7,3550.2,6.3616717]
[1762866270074,0.481,3550.3,3550.2,5.2703717]
[1762866270274,0.002,3550.3,3550.2,5.2703717]
[1762866270443,0.481,3550.3,3550.2,3.44224671]
[1762866270644,0.481,3550.3,3549.9,0.75489481]
[1762866270645,0.9437,3550.3,3549.9,0.75489481]
[1762866270845,0.9437,3550.3,3549.0,0.4689]
[1762866270846,2.81706011,3549.8,3549.3,0.75489481]
[1762866271081,2.81708687,3549.8,3549.3,0.705]
[1762866271281,0.1845,3549.7,3549.3,0.705]
[1762866271471,0.479,3549.4,3549.3,0.01]
[1762866271668,0.479,3549.4,3549.3,0.695]
[1762866271877,0.479,3549.4,3549.3,1.100504]
[1762866271878,0.9417,3549.4,3549.3,1.100504]
[1762866272091,0.9417,3549.4,3549.3,0.695]
[1762866272262,0.9417,3549.4,3549.3,1.100504]
[1762866272618,0.9417,3549.4,3549.3,0.695]
[1762866272952,0.9417,3549.4,3549.3,0.696]
[1762866273346,0.9417,3549.4,3549.3,1.101504]
[1762866273685,0.9417,3549.4,3549.3,0.696]
[1762866273887,0.9417,3549.4,3549.3,1.101504]
[1762866274183,0.9417,3549.4,3549.3,0.696]
[1762866280575,0.9417,3549.4,3549.3,1.101504]
[1762866282900,4.7613,3549.4,3549.3,1.101504]
[1762866283262,4.7613,3549.4,3549.3,0.001]
[1762866283698,4.2986,3549.4,3549.3,0.695]
[1762866283899,3.8196,3549.4,3549.3,1.100504]
[1762866284098,3.8196,3549.4,3549.3,4.36846096]
[1762866284301,3.8196,3549.4,3549.3,5.12335577]
[1762866285201,3.8196,3549.4,3549.3,6.85196777]
[1762866285397,3.8196,3549.4,3549.3,5.62817296]
[1762866286199,4.2986,3549.4,3549.3,5.17767296]
[1762866286393,3.8196,3549.4,3549.3,5.17767296]
[1762866287505,3.8196,3549.4,3549.3,5.62817296]
[1762866288172,3.8188,3549.4,3549.3,5.62817296]
[1762866289096,3.8188,3549.4,3549.3,6.63469937]
[1762866289290,3.8188,3549.4,3549.3,6.09707296]
[1762866289898,3.8188,3549.4,3549.3,5.17767296]
[1762866289899,4.2978,3549.4,3549.3,5.17767296]
[1762866290106,4.2978,3549.4,3549.3,1.954712]
[1762866290306,4.7605,3549.4,3549.3,5.52845025]
[1762866290471,4.7605,3549.4,3549.3,5.93395425]
[1762866291170,4.2978,3549.4,3549.3,5.17767296]
[1762866291397,3.8188,3549.4,3549.3,5.62817296]
[1762866291901,4.7605,3549.4,3549.3,5.17767296]
[1762866292272,0.4627,3549.7,3549.6,2.81721884]
[1762866292472,0.1865,3549.9,3549.8,4.48227611]
[1762866292674,1.1282,3549.9,3549.8,5.23859136]
[1762866293595,1.1282,3549.9,3549.8,2.42153125]
[1762866293904,1.1282,3549.9,3549.8,1.665216]
[1762866294080,1.1282,3549.9,3549.8,2.42153125]
[1762866295202,1.1282,3549.9,3549.8,5.23859136]
[1762866296203,1.1282,3549.9,3549.8,4.48227611]
[1762866297108,0.481,3549.9,3549.8,4.48227611]
[1762866297308,0.002,3549.9,3549.8,5.49058841]
[1762866297509,0.497,3549.9,3549.8,5.49058841]
[1762866297811,4.3158,3549.9,3549.8,5.49058841]
[1762866298311,4.3158,3549.9,3549.8,4.48227611]
[1762866298610,4.3158,3549.9,3549.8,4.96277611]
[1762866298611,3.8208,3549.9,3549.8,4.96277611]
[1762866298811,3.8208,3549.9,3549.8,6.89359162]
[1762866298981,3.8208,3549.9,3549.8,5.38360831]
[1762866299515,3.8208,3549.9,3549.8,4.90310831]
[1762866299885,4.9324,3549.9,3549.8,4.48227611]
[1762866300087,4.9324,3549.9,3549.8,2.67645679]
[1762866300421,4.9324,3549.9,3549.8,4.48227611]
[1762866301118,4.9324,3549.9,3549.8,1.665216]
[1762866301817,4.9324,3549.9,3549.7,0.75899416]
[1762866302018,0.6776,3549.8,3549.6,0.75899416]
[1762866302222,0.4907,3549.8,3549.6,0.75899416]
[1762866302411,0.9452,3549.7,3549.6,0.75899416]
[1762866303414,3.76233947,3549.7,3549.6,0.75899416]
[1762866303800,2.81721884,3549.6,3549.5,0.75899416]
[1762866303984,3.30791884,3549.6,3549.4,0.75899416]
[1762866304185,3.30799821,3549.5,3549.4,0.75899416]
[1762866304390,3.76249821,3549.5,3549.4,0.75899416]
[1762866304585,2.81737758,3549.4,3549.3,0.75999416]
[1762866304790,3.49497758,3549.4,3549.3,0.75999416]
[1762866305023,4.18697758,3549.4,3549.3,0.001]
[1762866305541,1.3696,3549.4,3549.3,0.001]
[1762866305689,4.18697758,3549.4,3549.3,0.001]
[1762866307513,1.3696,3549.4,3549.3,0.001]
[1762866307722,1.3696,3549.4,3549.3,0.75999416]
[1762866307723,0.6776,3549.4,3549.3,0.75999416]
[1762866307925,0.1869,3549.4,3549.3,0.406504]
[1762866308096,0.4927,3549.7,3549.3,0.406504]
[1762866308097,0.4927,3549.7,3549.3,3.22391191]
[1762866308295,0.4927,3549.7,3549.4,0.75852439]
[1762866308741,0.4545,3549.5,3549.4,0.75852439]
[1762866309195,0.9452,3549.5,3549.4,0.75852439]
[1762866309529,0.4545,3549.5,3549.4,3.98140597]
[1762866309717,0.4545,3549.5,3549.4,3.22288158]
[1762866309915,0.002,3549.7,3549.6,3.22272284]
[1762866310122,0.002,3549.7,3549.6,4.67324495]
[1762866310750,0.002,3549.7,3549.6,3.91472284]
[1762866311244,0.9472,3549.7,3549.6,1.85608508]
[1762866311561,0.9472,3549.7,3549.6,1.097504]
[1762866312262,0.9464,3549.7,3549.6,1.097504]
[1762866312855,0.9464,3549.7,3549.6,1.85608508]
[1762866313559,0.4557,3549.7,3549.6,1.85608508]
[1762866314373,0.9464,3549.7,3549.6,1.85608508]
[1762866315263,4.7652,3549.7,3549.6,1.45058108]
[1762866315562,4.7652,3549.7,3549.6,0.692]
[1762866315563,7.58233947,3549.7,3549.6,0.692]
[1762866316329,4.7652,3549.7,3549.6,0.692]
[1762866316525,7.58233947,3549.7,3549.6,0.692]
[1762866316729,7.58233947,3549.7,3549.3,0.001]
[1762866316730,2.81737758,3549.4,3549.3,0.001]
[1762866316975,7.09067758,3549.4,3549.3,0.001]
[1762866317170,8.27237758,3549.4,3549.3,0.001]
[1762866318762,5.455,3549.4,3549.3,0.001]
[1762866319278,4.764,3549.4,3549.3,0.001]
[1762866319444,7.58137758,3549.4,3549.3,0.001]
[1762866319645,4.764,3549.4,3549.3,0.001]
[1762866321779,4.764,3549.4,3549.3,1.096504]
[1762866321780,4.2733,3549.4,3549.3,1.096504]
[1762866322005,3.8188,3549.4,3549.3,6.13187296]
[1762866322147,0.0012,3549.7,3549.6,3.22272284]
[1762866322349,0.0012,3549.7,3549.6,5.65293484]
[1762866322592,0.0012,3549.7,3549.6,7.10730711]
[1762866323109,0.0012,3549.7,3549.6,7.41925367]
[1762866323672,0.0012,3549.7,3549.6,9.43719497]
[1762866323871,0.0012,3549.7,3549.6,7.41925367]
[1762866324264,0.0012,3549.7,3549.6,7.32730711]